bitfinex-derivatives/quotes_BTCF0:USTF0_20251128
["timestamp","ask_amount","ask_price","bid_price","bid_amount"]
[1764304087076,0.81,91469.0,91468.0,0.01369]
[1764304087576,0.81,91469.0,91468.0,0.03651]
[1764304087773,0.81,91469.0,91468.0,0.05813]
[1764304099185,0.83528351,91469.0,91468.0,0.05813]
[1764304100884,0.81,91469.0,91468.0,0.05813]
[1764304102180,0.81,91469.0,91468.0,0.01369]
[1764304103084,0.83529189,91469.0,91468.0,0.01369]
[1764304103282,0.81,91469.0,91468.0,0.01369]
[1764304103782,1.24528978,91469.0,91464.0,0.0266974]
[1764304103976,0.02528978,91468.0,91464.0,0.0266974]
[1764304104181,0.010936,91465.0,91464.0,0.0131574]
[1764304104382,1.240936,91465.0,91462.0,0.00016402]
[1764304105381,0.0109363,91463.0,91462.0,0.00016402]
[1764304105587,1.32622011,91463.0,91462.0,0.00016402]
[1764304105783,1.32622011,91463.0,91462.0,0.00116402]
[1764304105981,1.32622011,91463.0,91455.0,0.01295]
[1764304106286,0.0109371,91456.0,91455.0,0.02632752]
[1764304106484,0.8709371,91456.0,91455.0,0.01295]
[1764304106781,0.8709371,91456.0,91455.0,0.03425]
[1764304107789,0.8709371,91456.0,91455.0,0.0558]
[1764304108190,0.8709371,91456.0,91455.0,0.0578]
[1764304111094,0.8709371,91456.0,91455.0,0.07111836]
[1764304111891,1.0431771,91456.0,91455.0,0.07111836]
[1764304119794,1.4231771,91456.0,91455.0,0.07111836]
[1764304124794,1.0031771,91456.0,91455.0,0.07111836]
[1764304127097,0.6231771,91456.0,91455.0,0.07111836]
[1764304130584,0.6231771,91456.0,91455.0,0.08205556]
[1764304130585,0.13,91456.0,91455.0,0.08205556]
[1764304130790,0.4,91456.0,91455.0,0.08205556]
[1764304131396,0.17224,91458.0,91457.0,0.0452]
[1764304131589,0.22224,91458.0,91457.0,0.0452]
[1764304131789,0.17224,91458.0,91457.0,0.0452]
[1764304132895,0.17224,91458.0,91457.0,0.0462]
[1764304133898,0.0109362,91464.0,91463.0,0.0452]
[1764304134095,0.06984,91473.0,91463.0,0.0452]
[1764304134297,0.010936,91466.0,91465.0,0.0452]
[1764304134495,0.390936,91466.0,91465.0,0.0452]
[1764304139506,0.390936,91466.0,91465.0,0.05810961]
[1764304147311,0.390936,91466.0,91465.0,0.06904561]
[1764304153914,0.390936,91466.0,91465.0,0.05810961]
[1764304160514,0.390936,91466.0,91465.0,0.03532961]
[1764304161522,0.41631182,91466.0,91465.0,0.03532961]
[1764304162415,0.41631182,91466.0,91465.0,0.05682961]
[1764304165221,0.80631182,91466.0,91465.0,0.01290961]
[1764304165429,0.80631182,91466.0,91464.0,0.01282]
[1764304165727,0.02537582,91465.0,91464.0,0.01282]
[1764304166027,0.47537582,91465.0,91464.0,0.03444]
[1764304166727,0.92537582,91465.0,91464.0,0.01282]
[1764304168227,0.92537582,91465.0,91464.0,0.02583985]
[1764304168533,0.92537582,91465.0,91464.0,0.01282]
[1764304168729,0.92537582,91465.0,91464.0,0.05594]
[1764304170332,0.59537582,91465.0,91464.0,0.05594]
[1764304172935,0.59537582,91465.0,91464.0,0.0690828]
[1764304175537,0.47537582,91465.0,91464.0,0.0690828]
[1764304194744,0.02537582,91465.0,91464.0,0.0690828]
[1764304194949,0.18,91465.0,91464.0,0.0690828]
[1764304195154,0.0807751,91473.0,91472.0,0.04242]
[1764304195448,0.54603745,91473.0,91472.0,0.04242]
[1764304195647,0.53510235,91473.0,91472.0,0.04242]
[1764304196039,0.50984,91473.0,91472.0,0.04242]
[1764304196838,0.51184,91473.0,91472.0,0.04242]
[1764304197243,0.51284,91473.0,91472.0,0.04242]
[1764304201348,0.5237751,91473.0,91472.0,0.04242]
[1764304207364,0.51284,91473.0,91472.0,0.04242]
[1764304207661,0.20284,91473.0,91472.0,0.04242]
[1764304207858,0.07284,91473.0,91472.0,0.04242]
[1764304208364,0.0016718,91473.0,91472.0,0.04242]
[1764304208969,0.0109339,91483.0,91480.0,0.05726]
[1764304209274,0.14016307,91481.0,91480.0,0.05726]
[1764304209471,0.23016307,91481.0,91480.0,0.05726]
[1764304210274,0.23116307,91481.0,91480.0,0.05726]
[1764304210670,0.23416307,91481.0,91480.0,0.05726]
[1764304215882,0.66416307,91481.0,91480.0,0.01282]
[1764304216375,0.66416307,91481.0,91480.0,0.02556661]
[1764304217073,0.68926964,91481.0,91480.0,0.01274661]
[1764304217277,0.0109351,91473.0,91472.0,0.01282]
[1764304217471,0.8309351,91473.0,91472.0,0.01282]
[1764304218081,0.8309351,91473.0,91472.0,0.03404]
[1764304218376,0.8309351,91473.0,91472.0,0.01282]
[1764304218574,0.8309351,91473.0,91471.0,0.00016402]
[1764304218775,0.02511327,91472.0,91471.0,0.00016402]
[1764304218964,0.85511327,91472.0,91471.0,0.00016402]
[1764304219574,0.85511327,91472.0,91464.0,0.01356]
[1764304219874,0.02511327,91471.0,91464.0,0.02585947]
[1764304220080,0.85511327,91471.0,91464.0,0.02585947]
[1764304220279,0.02511327,91470.0,91464.0,0.02585947]
[1764304220574,0.86511327,91470.0,91464.0,0.02585947]
[1764304220777,0.02511327,91469.0,91464.0,0.02585947]
[1764304220983,0.010936,91465.0,91464.0,0.02685947]
[1764304221281,0.810936,91465.0,91464.0,0.02685947]
[1764304222683,0.810936,91465.0,91464.0,0.04807947]
[1764304222878,0.810936,91465.0,91464.0,0.04707947]
[1764304223081,0.810936,91465.0,91464.0,0.01329947]
[1764304223581,0.83605547,91465.0,91464.0,0.01329947]
[1764304224483,0.83605547,91465.0,91464.0,0.001]
[1764304225985,1.00825547,91465.0,91464.0,0.001]
[1764304228084,0.983136,91465.0,91464.0,0.001]
[1764304228785,1.00823144,91465.0,91462.0,0.01270016]
[1764304228986,0.0109368,91459.0,91458.0,0.00016402]
[1764304229286,0.7809368,91459.0,91458.0,0.00016402]
[1764304230185,0.7809368,91459.0,91458.0,0.00216402]
[1764304231088,0.80602747,91459.0,91458.0,0.00216402]
[1764304231477,0.7809368,91459.0,91458.0,0.00216402]
[1764304235487,0.80607772,91459.0,91458.0,0.00216402]
[1764304240993,0.7809368,91459.0,91458.0,0.00216402]
[1764304242486,0.80609187,91459.0,91458.0,0.00216402]
[1764304248096,0.0109375,91453.0,91448.0,0.01356]
[1764304248297,0.19739507,91452.0,91448.0,0.01356]
[1764304248594,0.02515507,91451.0,91448.0,0.03569]
[1764304248800,0.010938,91449.0,91448.0,0.03569]
[1764304248997,0.85609307,91449.0,91448.0,0.01356]
[1764304249297,0.85609307,91449.0,91446.0,0.01365]
[1764304249602,0.0109382,91447.0,91446.0,0.01365]
[1764304249801,0.85609327,91447.0,91446.0,0.01365]
[1764304251298,0.85609327,91447.0,91446.0,0.01765]
[1764304253700,0.85609327,91447.0,91446.0,0.004]
[1764304253894,0.0109389,91441.0,91440.0,0.01365]
[1764304254094,0.9331789,91441.0,91440.0,0.03578]
[1764304254295,0.95833397,91441.0,91440.0,0.05781]
[1764304255304,0.95833397,91441.0,91440.0,0.05881]
[1764304256405,0.95833397,91441.0,91440.0,0.06281]
[1764304256995,0.95833397,91441.0,91440.0,0.07482627]
[1764304259396,0.56515507,91441.0,91440.0,0.07482627]
[1764304259600,0.59224,91441.0,91440.0,0.03066627]
[1764304259901,0.59224,91441.0,91440.0,0.07482627]
[1764304261207,1.04224,91441.0,91440.0,0.07482627]
[1764304261610,0.72224,91441.0,91440.0,0.07482627]
[1764304262400,0.59224,91441.0,91440.0,0.07482627]
[1764304267704,0.08,91441.0,91440.0,0.02795527]
[1764304267904,0.1422492,91470.0,91457.0,0.04429]
[1764304268204,0.0109354,91471.0,91463.0,0.04429]
[1764304268402,0.5049154,91471.0,91470.0,0.04429]
[1764304269506,0.5089154,91471.0,91470.0,0.04429]
[1764304270715,0.8889154,91471.0,91470.0,0.04429]
[1764304270914,0.8899154,91471.0,91470.0,0.04429]
[1764304273123,0.5999154,91471.0,91470.0,0.05778]
[1764304273521,0.5999154,91471.0,91470.0,0.04429]
[1764304273723,0.5099154,91471.0,91470.0,0.04429]
[1764304274029,0.8499154,91471.0,91470.0,0.04429]
[1764304274327,0.5399154,91471.0,91470.0,0.04429]
[1764304275526,0.5399154,91471.0,91470.0,0.05679677]
[1764304276324,0.7899154,91471.0,91470.0,0.05679677]
[1764304279426,0.7899154,91471.0,91470.0,0.07028677]
[1764304279427,0.5099154,91471.0,91470.0,0.07028677]
[1764304279623,0.2499154,91471.0,91470.0,0.07028677]
[1764304279822,0.23898,91471.0,91470.0,0.07028677]
[1764304280119,0.38898,91471.0,91470.0,0.03558677]
[1764304280319,0.83898,91471.0,91470.0,0.01250677]
[1764304280532,0.04516,91462.0,91461.0,0.04273402]
[1764304280729,0.48516,91462.0,91461.0,0.04273402]
[1764304281025,0.48516,91462.0,91461.0,0.05474834]
[1764304281727,1.1094,91462.0,91461.0,0.05474834]
[1764304282824,0.6594,91462.0,91461.0,0.01217834]
[1764304283026,0.9594,91462.0,91461.0,0.01217834]
[1764304283328,0.0560983,91446.0,91445.0,0.04257]
[1764304283524,1.0583383,91446.0,91445.0,0.04257]
[1764304284834,0.6574,91446.0,91445.0,0.04457]
[1764304285040,0.7183383,91446.0,91445.0,0.04457]
[1764304285334,0.6574,91446.0,91445.0,0.05806]
[1764304285634,0.32224,91446.0,91445.0,0.05806]
[1764304286142,0.53224,91446.0,91445.0,0.05806]
[1764304286332,0.53224,91446.0,91445.0,0.07058799]
[1764304287423,0.36,91446.0,91445.0,0.07058799]
[1764304288027,0.0109383,91447.0,91445.0,0.02801799]
[1764304288235,0.0109383,91447.0,91446.0,0.04257]
[1764304288426,0.2,91453.0,91452.0,0.04257]
[1764304288625,0.2909375,91453.0,91452.0,0.05606]
[1764304289638,0.6281675,91453.0,91452.0,0.05606]
[1764304290539,0.6057775,91453.0,91452.0,0.05606]
[1764304290935,0.4509375,91453.0,91452.0,0.05606]
[1764304291533,0.44,91453.0,91452.0,0.05606]
[1764304291839,0.00016402,91455.0,91454.0,0.04423]
[1764304308752,4.02e-06,91455.0,91454.0,0.04423]
[1764304308953,0.0327157,91469.0,91468.0,0.0660457]
[1764304309152,0.2858857,91469.0,91468.0,0.0660457]
[1764304310057,0.2888857,91469.0,91468.0,0.0660457]
[1764304311056,0.2898857,91469.0,91468.0,0.0660457]
[1764304312748,0.0367157,91469.0,91468.0,0.0660457]
[1764304312944,0.04895,91469.0,91468.0,0.0660457]
[1764304314750,0.04895,91469.0,91468.0,0.05511]
[1764304317052,0.04895,91469.0,91468.0,0.06730638]
[1764304320967,0.07411523,91469.0,91468.0,0.06730638]
[1764304321164,0.43411523,91469.0,91468.0,0.06730638]
[1764304322162,0.43411523,91469.0,91468.0,0.01219638]
[1764304322361,0.04368,91460.0,91459.0,0.04528402]
[1764304322556,0.44368,91460.0,91459.0,0.04528402]
[1764304323466,0.4546166,91460.0,91459.0,0.04528402]
[1764304323658,0.4566166,91460.0,91459.0,0.04528402]
[1764304324167,0.44568,91460.0,91459.0,0.05622082]
[1764304324473,0.04568,91460.0,91459.0,0.05622082]
[1764304324663,0.42568,91460.0,91459.0,0.05622082]
[1764304327372,0.42568,91460.0,91459.0,0.06831188]
[1764304328173,0.42568,91460.0,91459.0,0.05737508]
[1764304340277,0.11568,91460.0,91459.0,0.05737508]
[1764304340675,0.002,91460.0,91459.0,0.13567258]
[1764304340980,0.02328402,91478.0,91477.0,0.04324]
[1764304341372,0.00016402,91478.0,91477.0,0.04324]
[1764304342084,0.22879501,91500.0,91485.0,0.0109337]
[1764304342085,0.075,91500.0,91485.0,0.0109337]
[1764304342382,0.09812,91500.0,91499.0,0.04324]
[1764304342584,0.12058,91500.0,91499.0,0.04324]
[1764304343181,0.075,91500.0,91499.0,0.04324]
[1764304343379,0.00016402,91509.0,91495.0,0.01363]
[1764304343380,0.02328402,91509.0,91508.0,0.04324]
[1764304343599,0.04574402,91509.0,91508.0,0.04324]
[1764304344595,0.04574402,91509.0,91508.0,0.04424]
[1764304345290,0.04574402,91509.0,91508.0,0.04924]
[1764304348189,0.00016402,91509.0,91508.0,0.04924]
[1764304349390,0.02328402,91509.0,91508.0,0.04924]
[1764304349591,0.04574402,91509.0,91508.0,0.04924]
[1764304349992,0.04574402,91509.0,91508.0,0.06135302]
[1764304351804,0.04574402,91509.0,91508.0,0.03967302]
[1764304352095,0.49574402,91509.0,91508.0,0.01811302]
[1764304353498,0.04295,91491.0,91490.0,0.04378402]
[1764304354606,0.02234,91491.0,91490.0,0.04378402]
[1764304354903,0.02934,91491.0,91490.0,0.05569047]
[1764304355293,0.05095,91491.0,91490.0,0.05569047]
[1764304361213,0.02934,91491.0,91490.0,0.06374047]
[1764304361511,0.008,91491.0,91490.0,0.06374047]
[1764304362210,0.008,91491.0,91490.0,0.05569047]
[1764304362211,0.05095,91491.0,91490.0,0.05569047]
[1764304374016,0.02934,91491.0,91490.0,0.05569047]
[1764304374217,0.05095,91491.0,91490.0,0.05569047]
[1764304375022,0.008,91491.0,91490.0,0.05569047]
[1764304375231,0.02934,91491.0,91490.0,0.05569047]
[1764304375519,0.05095,91491.0,91490.0,0.05569047]
[1764304377825,0.008,91491.0,91490.0,0.05569047]
[1764304378209,0.05095,91491.0,91490.0,0.05569047]
[1764304381613,0.0109343,91480.0,91479.0,0.07810895]
[1764304381817,0.0679643,91480.0,91479.0,0.02294]
[1764304382016,0.0679643,91480.0,91479.0,0.04408]
[1764304383011,0.0749643,91480.0,91479.0,0.04408]
[1764304383723,0.0759643,91480.0,91479.0,0.04408]
[1764304385418,0.0688849,91475.0,91474.0,0.12218895]
[1764304386323,0.0688849,91475.0,91474.0,0.13312395]
[1764304386821,0.0748849,91475.0,91474.0,0.13312395]
[1764304387014,0.0758849,91475.0,91474.0,0.13312395]
[1764304387215,0.06495,91475.0,91474.0,0.13312395]
[1764304387411,0.06495,91475.0,91474.0,0.055015]
[1764304389423,0.007,91475.0,91474.0,0.055015]
[1764304389627,0.007,91475.0,91474.0,0.13312395]
[1764304391018,0.0517,91475.0,91474.0,0.055015]
[1764304392429,0.007,91475.0,91474.0,0.055015]
[1764304393127,0.0517,91475.0,91474.0,0.055015]
[1764304393732,0.02992,91475.0,91474.0,0.055015]
[1764304394321,0.007,91475.0,91474.0,0.055015]
[1764304401034,0.05166,91475.0,91474.0,0.055015]
[1764304402437,0.02995,91475.0,91474.0,0.055015]
[1764304402833,0.05166,91475.0,91474.0,0.055015]
[1764304409433,0.007,91475.0,91474.0,0.055015]
[1764304412545,0.02995,91475.0,91474.0,0.055015]
[1764304418352,0.007,91475.0,91474.0,0.055015]
[1764304419546,0.04265392,91489.0,91488.0,0.0562733]
[1764304419742,0.04265392,91489.0,91488.0,0.0690233]
[1764304420946,0.04265392,91489.0,91488.0,0.14731795]
[1764304421148,0.05165392,91489.0,91488.0,0.14831795]
[1764304421549,0.00916392,91489.0,91488.0,0.0700233]
[1764304421759,0.03119392,91489.0,91488.0,0.0700233]
[1764304423351,0.01016392,91489.0,91488.0,0.0700233]
[1764304423849,0.0133,91508.0,91507.0,0.04534]
[1764304423850,0.05579,91508.0,91507.0,0.04534]
[1764304424052,0.10579,91508.0,91507.0,0.04534]
[1764304424246,0.33579,91508.0,91507.0,0.04534]
[1764304425045,0.33579,91508.0,91507.0,0.04634]
[1764304425447,0.33579,91508.0,91507.0,0.05234]
[1764304430448,0.33579,91508.0,91507.0,0.007]
[1764304431743,0.33579,91508.0,91507.0,0.02174182]
[1764304431949,0.33579,91508.0,91507.0,0.007]
[1764304433060,0.05579,91508.0,91507.0,0.05234]
[1764304433256,0.02162392,91517.0,91516.0,0.05627]
[1764304433452,0.04265392,91517.0,91516.0,0.05627]
[1764304434059,0.04265392,91517.0,91516.0,0.04534]
[1764304434257,0.04249,91508.0,91507.0,0.20529664]
[1764304434454,0.04249,91508.0,91507.0,0.056271]
[1764304435759,0.04249,91508.0,91507.0,0.07065321]
[1764304436454,0.04549,91508.0,91507.0,0.07065321]
[1764304436660,0.04549,91508.0,91507.0,0.04821321]
[1764304439460,0.43549,91508.0,91507.0,0.01438221]
[1764304439662,0.04249,91499.0,91498.0,0.02306392]
[1764304440659,0.04249,91499.0,91498.0,0.06007656]
[1764304440858,0.04249,91499.0,91498.0,0.01473656]
[1764304441056,0.41249,91499.0,91498.0,0.01473656]
[1764304442556,0.41249,91499.0,91498.0,0.03682656]
[1764304443147,0.41249,91499.0,91498.0,0.01473656]
[1764304444862,0.0109333,91488.0,91486.0,0.0109335]
[1764304445060,0.04356,91483.0,91482.0,0.054124]
[1764304448165,0.04356,91483.0,91482.0,0.06885968]
[1764304455066,0.04356,91483.0,91482.0,0.01473568]
[1764304455067,0.49356,91483.0,91482.0,0.01473568]
[1764304455267,0.04573,91477.0,91476.0,0.0567047]
[1764304466774,0.04573,91477.0,91476.0,0.0339647]
[1764304466969,0.04573,91474.0,91473.0,0.04890553]
[1764304467174,0.04573,91474.0,91473.0,0.01494053]
[1764304467575,0.04573,91474.0,91473.0,0.03797053]
[1764304468470,0.04573,91474.0,91473.0,0.06171053]
[1764304469571,0.49573,91474.0,91473.0,0.01594053]
[1764304471278,0.49573,91474.0,91473.0,0.01494053]
[1764304474980,0.49573,91474.0,91473.0,0.05832053]
[1764304475183,0.05724,91485.0,91484.0,0.0543138]
[1764304475381,0.04434,91485.0,91484.0,0.0543138]
[1764304475986,0.0552737,91485.0,91484.0,0.0543138]
[1764304476876,0.04434,91485.0,91484.0,0.0543138]
[1764304478781,0.04434,91485.0,91484.0,0.04338]
[1764304478984,0.04434,91485.0,91484.0,0.0543138]
[1764304479581,0.05754,91485.0,91484.0,0.04338]
[1764304481284,0.05754,91485.0,91484.0,0.0543138]
[1764304481483,0.05754,91485.0,91484.0,0.06939768]
[1764304481879,0.04434,91485.0,91484.0,0.06939768]
[1764304484389,0.04434,91485.0,91484.0,0.05846388]
[1764304484783,0.47434,91485.0,91484.0,0.05846388]
[1764304488385,0.89434,91485.0,91484.0,0.01508388]
[1764304488594,0.04434,91474.0,91473.0,0.04354392]
[1764304489687,0.46434,91474.0,91473.0,0.04354392]
[1764304489994,0.46434,91474.0,91473.0,0.02143392]
[1764304490784,0.46434,91474.0,91473.0,0.02243392]
[1764304491496,0.46434,91474.0,91473.0,0.03731543]
[1764304491690,0.46434,91474.0,91473.0,0.05942543]
[1764304491995,0.46434,91474.0,91473.0,0.01604543]
[1764304493095,0.83434,91474.0,91473.0,0.01604543]
[1764304493578,0.83434,91474.0,91473.0,0.01504543]
[1764304493783,0.83434,91474.0,91473.0,0.01604543]
[1764304494696,0.83434,91474.0,91473.0,0.03731543]
[1764304496696,0.83434,91474.0,91473.0,0.01604543]
[1764304497590,0.04434,91458.0,91457.0,0.0543169]
[1764304498895,0.04434,91458.0,91457.0,0.0573169]
[1764304501789,0.04434,91458.0,91457.0,0.0543169]
[1764304501986,0.04434,91458.0,91457.0,0.0573169]
[1764304503501,0.04608401,91467.0,91466.0,0.0551259]
[1764304504295,0.05608401,91467.0,91466.0,0.0551259]
[1764304504496,0.41608401,91467.0,91466.0,0.0551259]
[1764304504894,0.07608401,91467.0,91466.0,0.0551259]
[1764304505097,0.07608401,91467.0,91466.0,0.0571259]
[1764304505902,0.00016401,91467.0,91466.0,0.4171259]
[1764304506399,0.04592,91484.0,91483.0,0.04419]
[1764304506610,0.81592,91484.0,91483.0,0.04419]
[1764304509305,0.81592,91484.0,91483.0,0.02224]
[1764304509604,0.81592,91484.0,91479.0,0.0109343]
[1764304509605,0.0583,91480.0,91479.0,0.0551243]
[1764304509802,0.4183,91480.0,91479.0,0.04419]
[1764304511102,0.7983,91480.0,91479.0,0.04419]
[1764304511307,0.0704149,91475.0,91474.0,0.04435401]
[1764304511507,0.05948,91475.0,91474.0,0.04435401]
[1764304512205,0.05948,91475.0,91474.0,0.00016401]
[1764304512898,0.05948,91475.0,91474.0,0.02240401]
[1764304513108,0.05948,91475.0,91474.0,0.04435401]
[1764304513310,0.04592,91475.0,91474.0,0.04435401]
[1764304513906,0.02286,91475.0,91474.0,0.04435401]
[1764304514211,0.04592,91475.0,91474.0,0.04435401]
[1764304514902,0.04592,91485.0,91475.0,0.01296]
[1764304515096,0.34592,91485.0,91484.0,0.04419]
[1764304515297,0.35592,91485.0,91484.0,0.04419]
[1764304516092,0.04592,91485.0,91484.0,0.04419]
[1764304516903,0.04571401,91493.0,91492.0,0.04553]
[1764304517213,0.39571401,91493.0,91492.0,0.04553]
[1764304517405,0.02234861,91493.0,91492.0,0.04553]
[1764304517600,0.0564818,91501.0,91500.0,0.04553]
[1764304517801,0.4364818,91501.0,91500.0,0.04553]
[1764304518803,0.42555,91501.0,91500.0,0.04553]
[1764304520613,0.42555,91501.0,91500.0,0.0564619]
[1764304521814,0.42555,91501.0,91500.0,0.04553]
[1764304522204,0.04555,91501.0,91500.0,0.0704319]
[1764304522404,0.04555,91501.0,91500.0,0.08589666]
[1764304525618,0.04555,91517.0,91516.0,0.0564599]
[1764304525915,0.25555,91517.0,91516.0,0.0564599]
[1764304526115,0.04582315,91526.0,91525.0,0.0564589]
[1764304526307,0.04582315,91526.0,91525.0,0.0704289]
[1764304527210,0.00027315,91526.0,91525.0,0.4504289]
[1764304527416,1e-08,91535.0,91534.0,0.0564578]
[1764304527809,0.02281001,91535.0,91534.0,0.0564578]
[1764304528009,0.04555001,91535.0,91534.0,0.0564578]
[1764304528516,1e-08,91535.0,91534.0,0.0564578]
[1764304528815,1e-08,91535.0,91534.0,1.5109278]
[1764304529016,1e-08,91535.0,91534.0,1.5179278]
[1764304529403,0.04555001,91535.0,91534.0,1.507]
[1764304530020,0.04555001,91535.0,91534.0,1.5]
[1764304531118,0.02281001,91535.0,91534.0,1.5]
[1764304533415,0.44515001,91535.0,91534.0,1.5]
[1764304533719,0.04506,91526.0,91525.0,0.21789183]
[1764304533913,0.04506,91526.0,91525.0,0.06180943]
[1764304533914,0.42506,91526.0,91525.0,0.06180943]
[1764304538524,0.04506,91526.0,91525.0,0.06180943]
[1764304539023,0.04506,91533.0,91532.0,0.034018]
[1764304539228,0.04506,91533.0,91532.0,0.04613]
[1764304539229,0.42506,91533.0,91532.0,0.04613]
[1764304539612,0.64506,91533.0,91532.0,0.04613]
[1764304540114,0.37506,91533.0,91532.0,0.04613]
[1764304540320,0.64506,91533.0,91532.0,0.04613]
[1764304540924,0.04506,91526.0,91525.0,0.07273823]
[1764304543222,1e-08,91535.0,91525.0,0.07273823]
[1764304543223,0.04506001,91535.0,91534.0,0.0570578]
[1764304543426,0.05272001,91535.0,91534.0,0.0570578]
[1764304543922,0.39272001,91535.0,91534.0,0.0570578]
[1764304544114,0.41506001,91535.0,91534.0,0.0570578]
[1764304546122,0.15506001,91535.0,91534.0,0.0570578]
[1764304547712,0.40506001,91535.0,91534.0,0.0570578]
[1764304552226,0.14506001,91535.0,91534.0,0.0570578]
[1764304552524,0.17506001,91535.0,91534.0,0.0570578]
[1764304554233,0.20055013,91535.0,91534.0,0.0570578]
[1764304554619,0.46055013,91535.0,91534.0,0.0570578]
[1764304558030,0.43821013,91535.0,91534.0,0.0570578]
[1764304558333,0.11055013,91535.0,91534.0,0.0570578]
[1764304560535,0.04506,91526.0,91525.0,0.03871943]
[1764304560834,0.06506,91526.0,91525.0,0.01567943]
[1764304561035,0.05795,91525.0,91524.0,0.033969]
[1764304561240,0.18795,91525.0,91524.0,0.057059]
[1764304563130,0.05795,91525.0,91520.0,1.5109294]
[1764304563332,0.04502,91521.0,91520.0,1.51654339]
[1764304563628,0.29502,91521.0,91520.0,1.51654339]
[1764304565531,0.14502,91521.0,91520.0,1.51654339]
[1764304565734,0.14502,91521.0,91520.0,1.52948339]
[1764304566637,0.04502,91521.0,91520.0,1.52948339]
[1764304568233,0.04502,91521.0,91520.0,1.51654339]
[1764304568433,0.44502,91521.0,91520.0,1.51654339]
[1764304573733,0.4559494,91521.0,91520.0,0.01654339]
[1764304573939,0.4559494,91521.0,91516.0,0.00016392]
[1764304573940,0.04502,91518.0,91517.0,0.0109298]
[1764304574130,0.41502,91518.0,91517.0,0.0334098]
[1764304574331,0.41502,91518.0,91517.0,0.0560798]
[1764304575343,0.41502,91518.0,91517.0,0.04515]
[1764304576041,0.41502,91518.0,91517.0,0.02248]
[1764304576340,0.0559498,91517.0,91516.0,1.50016392]
[1764304576540,0.9159498,91517.0,91516.0,0.00016392]
[1764304576932,0.04502,91503.0,91502.0,0.0560816]
[1764304577439,0.04502,91503.0,91502.0,1.5560816]
[1764304578742,0.04502,91503.0,91502.0,1.5570816]
[1764304580741,0.43502,91503.0,91502.0,0.02348]
[1764304581128,0.43502,91503.0,91502.0,0.04621]
[1764304581427,0.43502,91503.0,91502.0,0.06290843]
[1764304588735,0.43502,91503.0,91502.0,0.01769843]
[1764304588736,0.85502,91503.0,91502.0,0.01769843]
[1764304589541,0.85502,91503.0,91493.0,0.00016392]
[1764304589542,0.0570826,91494.0,91493.0,0.02117392]
[1764304589748,0.4270826,91494.0,91493.0,0.02117392]
[1764304590152,0.4270826,91494.0,91493.0,0.04390392]
[1764304590745,0.4270826,91494.0,91493.0,0.06372792]
[1764304590948,0.41615,91494.0,91493.0,0.06372792]
[1764304591649,1.18615,91494.0,91493.0,0.01015903]
[1764304591839,1.18615,91494.0,91461.0,0.13777341]
[1764304591840,0.04486,91462.0,91461.0,0.04477]
[1764304592140,0.10486,91462.0,91461.0,0.04477]
[1764304593048,0.35494196,91462.0,91461.0,0.04677]
[1764304593446,0.35494196,91462.0,91461.0,0.04477]
[1764304594549,0.055797,91457.0,91456.0,1.5]
[1764304594744,0.04486,91457.0,91456.0,1.51661939]
[1764304596044,0.04586,91457.0,91456.0,1.51661939]
[1764304598550,0.40586,91457.0,91456.0,1.51661939]
[1764304599254,0.83586,91457.0,91456.0,0.01661939]
[1764304599450,0.04486,91453.0,91452.0,0.00016392]
[1764304599752,0.85486,91453.0,91452.0,0.00016392]
[1764304599949,0.85486,91453.0,91452.0,0.01676184]
[1764304600148,0.0109382,91447.0,91435.0,0.1724]
[1764304600354,0.8557982,91447.0,91435.0,0.1724]
[1764304600652,0.8557982,91447.0,91436.0,1.5]
[1764304601252,0.8557982,91447.0,91437.0,0.00016401]
[1764304602145,0.0557993,91438.0,91437.0,0.00016401]
[1764304602448,0.81588126,91438.0,91437.0,0.00016401]
[1764304603355,0.81588126,91438.0,91437.0,0.00416401]
[1764304603944,0.81588126,91438.0,91437.0,0.02036144]
[1764304604139,0.81588126,91438.0,91437.0,0.00416401]
[1764304607065,0.23494196,91438.0,91437.0,0.05987341]
[1764304607253,0.49494196,91438.0,91437.0,0.04893401]
[1764304608754,0.04494196,91438.0,91437.0,0.04893401]
[1764304611163,0.43494196,91438.0,91437.0,0.04893401]
[1764304611353,0.44588126,91438.0,91437.0,0.04893401]
[1764304611952,0.43494196,91438.0,91437.0,0.04893401]
[1764304612551,0.18494196,91438.0,91437.0,0.04893401]
[1764304613046,0.18494196,91438.0,91437.0,0.06583808]
[1764304613450,0.44494196,91438.0,91437.0,0.06583808]
[1764304614261,0.17494196,91438.0,91437.0,0.06583808]
[1764304616258,0.18588126,91438.0,91437.0,0.02106808]
[1764304616449,0.91588126,91438.0,91437.0,0.02106808]
[1764304616654,0.00678,91422.0,91421.0,0.02193]
[1764304616957,0.05164,91422.0,91421.0,0.02193]
[1764304617958,0.05164,91422.0,91421.0,0.04477]
[1764304618563,0.05164,91422.0,91421.0,0.04577]
[1764304618864,0.05164,91422.0,91421.0,0.05177]
[1764304619362,0.05164,91422.0,91421.0,0.0617113]
[1764304619564,0.04486,91422.0,91421.0,0.05077]
[1764304622460,0.04249,91434.0,91433.0,0.04373]
[1764304622968,0.39249,91434.0,91433.0,0.04373]
[1764304623265,8.196e-05,91438.0,91437.0,0.04373]
[1764304623657,0.02142196,91438.0,91437.0,0.04373]
[1764304624165,0.04257196,91438.0,91437.0,0.04373]
[1764304624962,0.04257196,91438.0,91437.0,0.04473]
[1764304629268,0.04257196,91438.0,91437.0,0.0556694]
[1764304629775,0.04257196,91438.0,91437.0,0.04473]
[1764304630268,0.69257196,91438.0,91437.0,0.001]
[1764304631064,0.3189376,91438.0,91437.0,0.001]
[1764304631265,0.2989376,91438.0,91437.0,0.04473]
[1764304631459,0.2989376,91438.0,91437.0,0.06154621]
[1764304632066,0.27257196,91438.0,91437.0,0.06154621]
[1764304632658,0.25142196,91438.0,91437.0,0.06154621]
[1764304632859,0.23008196,91438.0,91437.0,0.06154621]
[1764304633955,8.196e-05,91438.0,91437.0,0.06154621]
[1764304636361,0.00016401,91447.0,91446.0,0.04373]
[1764304637563,0.00116401,91447.0,91446.0,0.04373]
[1764304637962,0.02250401,91447.0,91446.0,0.04373]
[1764304638763,0.02250401,91447.0,91446.0,0.05652]
[1764304640063,0.00116401,91447.0,91446.0,0.05652]
[1764304642973,0.02231401,91447.0,91446.0,0.05652]